Cogmind - Beta 15 @@@ ROGUE MODE // 2025.05.24 @ 11:50:55 Player: Windjigo Result: Destroyed by GF-PSV(h) with Bolt Gun Performance ------------- Evolutions (0) 0 Regions Visited (3) 600 Robots Destroyed (11) 55 Value Destroyed (170) 170 Prototype IDs (7) 140 Alien Tech Used (0) 0 Bonus (800) 800 TOTAL SCORE: 1765 Bonus ------- Registered with UFD 300 Met Optimus in HQ 500 Cogmind --------- Core Integrity 0/250 Matter 300/300 Energy 99/100 System Corruption 0% Temperature Cool (0) Movement Core (50) Location -7/Scraptown Parts ------- > --- POWER (1) -------- (None) > --- PROPULSION (2) --- (None) > --- UTILITY (2) ------ (None) > --- WEAPON (2) ------- Power Maul > --- INVENTORY (5) ---- Heavy Armor Plating Junk Cannon (0) Shrapnel Trap Peak State ------------ > --- POWER ------------ Angular Momentum Engine > --- PROPULSION ------- Wheel Wheel > --- UTILITY ---------- Medium Storage Unit Targeting Computer > --- WEAPON ----------- Junk Cannon > --- INVENTORY -------- Fission Core Compact Wheel Improved Sensor Array Heavy Armor Plating Improved Shield Generator Hacking Suite Particle Gun Power Maul Shrapnel Trap [Rating: 23] Favorites ----------- Power Ion Engine Engine Ion Engine Propulsion Wheel Wheel Wheel Utility Targeting Computer Storage Small Storage Unit Processor Targeting Computer Weapon Light Assault Rifle Energy Gun Particle Gun Energy Cannon EM Pulse Cannon Ballistic Gun Light Assault Rifle Ballistic Cannon Gauss Cannon Special Weapon Enhanced Flamer Impact Weapon Power Maul Build | -11 -10 -10 -7 ------- Run | Yrd Mat Sub Scr Slots Evolved . | . . . . Power . | . . . . Propulsion . | . . . . Utility . | . . . . Weapon . | . . . . Parts Attached 21 | 8 3 2 8 Power 2 | 1 . . 1 Engine 2 | 1 . . 1 Core . | . . . . Reactor . | . . . . Propulsion 7 | 3 2 1 1 Treads . | . . . . Leg . | . . . . Wheel 7 | 3 2 1 1 Hover . | . . . . Flight . | . . . . Utility 3 | 1 1 . 1 Device . | . . . . Storage 2 | 1 . . 1 Processor 1 | . 1 . . Hackware . | . . . . Protection . | . . . . Artifact . | . . . . Weapon 9 | 3 . 1 5 Energy Gun 1 | . . . 1 Energy Cannon 1 | . . . 1 Ballistic Gun 3 | 3 . . . Ballistic Cannon 1 | . . . 1 Launcher . | . . . . Special Weapon 2 | . . 1 1 Impact Weapon 1 | . . . 1 Slashing Weapon . | . . . . Piercing Weapon . | . . . . Special Melee Weapon . | . . . . Unidentified Prototypes 1 | . . . 1 Parts Lost 6 | . . 1 5 Power 1 | . . . 1 Propulsion 4 | . . 1 3 Utility 1 | . . . 1 Weapon . | . . . . Highest Loss Streak 5 | . . 1 5 To Critical Strikes . | . . . . Average Backups 6 | 6 8 7 6 Power 1 | 1 2 2 1 Propulsion 1 | 2 4 3 1 Utility 1 | . . . 2 Weapon 1 | 1 2 1 1 Tool/Special . | . . . . Unused Backups 8 | . . . 8 Power 3 | . . . 3 Propulsion . | . . . . Utility 4 | . . . 4 Weapon 1 | . . . 1 Tool/Special . | . . . . Average Slot Usage (%) 97 | . 86 100 98 Engine 13 | . 14 14 13 Wheel 27 | . 28 28 27 Storage 13 | . 14 14 13 Processor 12 | . 1 14 13 Energy Gun 7 | . . . 9 Energy Cannon 1 | . . . 2 Ballistic Gun 14 | . 28 22 10 Ballistic Cannon 1 | . . . 2 Special Weapon 1 | . . 5 1 Peak Build Rating 23 | 6 7 9 23 Average Rating 10 | 5 6 7 12 On Entrance 5 | . 6 7 9 Naked Turns . | . . . . Heaviest Build 37 | 13 13 13 37 Greatest Support 26 | 26 20 20 26 Greatest Overweight (x) 1 | . . . 1 Average Overweight (x) . | . . . . Largest Inventory Capacity 10 | 8 8 8 10 Average Capacity 8 | 7 8 8 8 Most Carried 10 | 8 8 8 10 Average Carried 8 | 6 8 7 8 Final Capacity 8 | 8 8 8 5 Final Carried 8 | 8 8 8 5 Class Distribution -------------------- 100% | Mutant Dominant Class ---------------- Mutant | -10/Materials Mutant | -10/Subcaves Mutant | -7/Scraptown Resources | -11 -10 -10 -7 ----------- Run | Yrd Mat Sub Scr Matter Collected 574 | 360 62 . 152 Remotely . | . . . . Salvage Created 348 | 194 154 . . Parts 23 | 16 7 . . Haulers Intercepted . | . . . . Recyclers Shooed . | . . . . Parts Field Recycled . | . . . . Retrieved Matter . | . . . . Parts Self-Destructed . | . . . . Prevented . | . . . . Kills | -11 -10 -10 -7 ------- Run | Yrd Mat Sub Scr Combat Hostiles Destroyed 3 | . 3 . . Guns 3 | . 3 . . Classes Destroyed 5 | 3 2 . . Worker 1 | 1 . . . Tunneler 5 | 5 . . . Recycler 1 | 1 . . . Mechanic 1 | . 1 . . Grunt 3 | . 3 . . Best Kill Streak 2 | 2 2 . . Combat Bots Only 2 | . 2 . . Max Kills in Single Turn 1 | 1 1 . . Gunslinging . | . . . . Exploded . | . . . . Melee . | . . . . Uniques/NPCs Destroyed . | . . . . Combat | -11 -10 -10 -7 -------- Run | Yrd Mat Sub Scr Hostile Shots Fired 71 | . 28 . 43 Missed 20 | . 8 . 12 Hits 51 | . 20 . 31 Projectile 51 | . 20 . 31 Critical Strikes 2 | . 1 . 1 Damage Taken 825 | . 264 70 491 Core 253 | . 66 . 187 Absorbed by Shields . | . . . . Core Remaining (%) 100 | 100 . . . Volleys Fired 43 | 22 19 . 2 Largest 2 | 2 2 . 1 Hottest 40 | 40 40 . . Shots Fired 84 | 44 38 . 2 Gun 82 | 44 38 . . Cannon . | . . . . Launcher . | . . . . Special 2 | . . . 2 Kinetic 82 | 44 38 . . Thermal . | . . . . Explosive . | . . . . Electromagnetic . | . . . . Impact 2 | . . . 2 Robot Hit Streak 9 | 6 9 . 6 Robot Miss Streak 2 | 2 2 . . Penetration Max . | . . . . Secondary Targets . | . . . . Shots Hit Robots 55 | 25 28 . 2 Core Hits 20 | 9 11 . . Critical Kills . | . . . . Critical Parts Destroyed . | . . . . Critical Strikes . | . . . . Melee Attacks . | . . . . Impact . | . . . . Slashing . | . . . . Piercing . | . . . . Sneak Attacks . | . . . . Combat Hostiles . | . . . . Follow-up Attacks . | . . . . Damage Inflicted 704 | 275 286 . 143 Guns 561 | 275 286 . . Cannons . | . . . . Explosions . | . . . . Melee . | . . . . Ramming . | . . . . Kinetic 561 | 275 286 . . Thermal . | . . . . Explosive . | . . . . Electromagnetic . | . . . . Impact 143 | . . . 143 Slashing . | . . . . Piercing . | . . . . Highest Corruption . | . . . . Average Corruption . | . . . . Corruption Purged . | . . . . Corruption Blocked . | . . . . Overload Shots . | . . . . Overflow Damage . | . . . . Projectiles . | . . . . Explosions . | . . . . Melee . | . . . . Knockbacks 2 | . . . 2 Impact 2 | . . . 2 Kinetic . | . . . . Secondary . | . . . . Self-Inflicted Damage . | . . . . Shots . | . . . . Rammed . | . . . . Targets Rammed . | . . . . Kicked . | . . . . Crushed . | . . . . Highest Temperature 12 | . 9 . 12 Average Temperature 7 | . 7 . 12 Received Heat Transfer 286 | . 165 . 121 Siege Activations . | . . . . Martial Activations . | . . . . Shielding Activations . | . . . . Robots Disrupted . | . . . . Combat Hostiles . | . . . . Robots Corrupted . | . . . . Combat Hostiles . | . . . . Parts Fried . | . . . . Impact Corruptions . | . . . . Robots Melted . | . . . . Combat Hostiles . | . . . . Parts Melted . | . . . . Heat Transferred . | . . . . Parts Sabotaged . | . . . . Parts Stolen . | . . . . Parts Stripped . | . . . . Power Chain Reactions . | . . . . Alert | -11 -10 -10 -7 ------- Run | Yrd Mat Sub Scr Maximum Alert Level . | . . . . Low Security (%) 100 | 100 100 . . Level 1 . | . . . . Level 2 . | . . . . Level 3 . | . . . . Level 4 . | . . . . Level 5 . | . . . . High Security . | . . . . Max Security . | . . . . Peak Influence 55 | 5 55 . . Initial . | . . . . Average 9 | 2 15 . . Influence Increases 120 | 35 85 . . Destroy 0b10 Robot/C 60 | . 60 . . Destroy 0b10 Robot/NC 40 | 35 5 . . Destroy Leader 20 | . 20 . . Influence Decreases 120 | 35 60 25 . Entered New Map 13 | . . 13 . Time Decay 107 | 35 60 12 . Squads Dispatched 1 | . 1 . . Investigation . | . . . . Extermination . | . . . . Reinforcement 1 | . 1 . . Assault . | . . . . Garrison . | . . . . Intercept . | . . . . Searches Triggered . | . . . . Construction Impeded . | . . . . Haulers Reinforced . | . . . . Active Scanning Responses . | . . . . Cargo Convoy Interrupts . | . . . . Stealth | -11 -10 -10 -7 --------- Run | Yrd Mat Sub Scr Distress Signals . | . . . . Communications Jammed . | . . . . Distress Signals . | . . . . Times Spotted 16 | . 8 . 8 Peak Tracking Total 6 | . 4 . 6 Tactical Retreats 1 | . . . 1 Traps | -11 -10 -10 -7 ------- Run | Yrd Mat Sub Scr Traps Triggered 1 | . . 1 . Indirectly . | . . . . Trap Hack Attempts . | . . . . Triggered . | . . . . Disarmed . | . . . . Reprogrammed . | . . . . Reused . | . . . . Traps Extracted . | . . . . Installed . | . . . . Triggered . | . . . . Most Traps Carried 1 | . . 1 1 Machines | -11 -10 -10 -7 ---------- Run | Yrd Mat Sub Scr Machines Disabled . | . . . . Max in Single Turn . | . . . . Machines Repaired . | . . . . Machines Dismantled . | . . . . Machines Sabotaged . | . . . . Overloaded Fab Kills . | . . . . Hacking | -11 -10 -10 -7 --------- Run | Yrd Mat Sub Scr Machines Accessed 5 | . . . 5 Terminals . | . . . . Fabricators . | . . . . Repair Stations . | . . . . Recycling Units . | . . . . Scanalyzers . | . . . . Garrison Access . | . . . . Total Hacks 21 | . . . 21 Successful 21 | . . . 21 Failed . | . . . . Catastrophic . | . . . . Database Lockouts . | . . . . Manual . | . . . . Terminals . | . . . . Fabricators . | . . . . Repair Stations . | . . . . Recycling Units . | . . . . Scanalyzers . | . . . . Garrison Access . | . . . . Terminal Hacks 21 | . . . 21 Record 20 | . . . 20 Proto ID Catalog 1 | . . . 1 Fabricator Hacks . | . . . . Repair Station Hacks . | . . . . Recycling Unit Hacks . | . . . . Scanalyzer . | . . . . Garrison Access Hacks . | . . . . Unauthorized Hacks . | . . . . Terminals . | . . . . Fabricators . | . . . . Repair Stations . | . . . . Recycling Units . | . . . . Scanalyzers . | . . . . Garrison Access . | . . . . Data Cores Recovered . | . . . . Used . | . . . . Hacking Detections . | . . . . Full Trace Events . | . . . . Feedback Events . | . . . . Feedback Blocked . | . . . . Robot Schematics Acquired . | . . . . Robots Built . | . . . . Authchips . | . . . . Time . | . . . . Total Robot Build Rating . | . . . . Part Schematics Acquired . | . . . . Parts Built . | . . . . Authchips . | . . . . Time . | . . . . Total Part Build Rating . | . . . . Parts Repaired . | . . . . Time . | . . . . Parts Recycled . | . . . . Recycled Matter . | . . . . Retrieved Matter . | . . . . Retrieved Components . | . . . . Parts Scanalyzed . | . . . . Part Schematics Acquired . | . . . . Parts Damaged . | . . . . Bothacking | -11 -10 -10 -7 ------------ Run | Yrd Mat Sub Scr Used RIF Installer . | . . . . Robots Hacked . | . . . . Non-combat . | . . . . Combat . | . . . . Robot Hacks Applied . | . . . . Relay Couplers Released . | . . . . Fabnet Peak Effective % . | . . . . Robots Rewired . | . . . . Allies Hacked . | . . . . Hacks Repelled . | . . . . Allies | -11 -10 -10 -7 -------- Run | Yrd Mat Sub Scr Total Allies . | . . . . Largest Group . | . . . . Highest-Rated Group . | . . . . Highest-Rated Ally . | . . . . Total Orders . | . . . . Ally Attacks . | . . . . Total Damage . | . . . . Kills . | . . . . Allies Corrupted . | . . . . Allies Melted 2 | . . . 2 Intel | -11 -10 -10 -7 ------- Run | Yrd Mat Sub Scr Active Infowar (turns) . | . . . . Robot Analysis Total . | . . . . Derelict Logs Recovered 1 | . . 1 . Drone Launches . | . . . . Drone Recoveries . | . . . . Exploration | -11 -10 -10 -7 ------------- Run | Yrd Mat Sub Scr Turns Passed 2036 | 212 266 186 1372 Spaces Moved 2075 | 157 113 217 1588 Core 31 | 14 . . 17 Treads . | . . . . Legs . | . . . . Wheels 2044 | 143 113 217 1571 Hover . | . . . . Flight . | . . . . Fastest Speed 50 | 50 80 80 50 Average Speed 83 | 79 80 80 84 Slowest Speed 95 | 90 80 80 95 Overloaded Moves . | . . . . Propulsion Burnouts . | . . . . Robots Hopped . | . . . . Potential Cave-ins . | . . . . Cave-ins Triggered . | . . . . Exploration Rate (%) 31 | 6 17 14 89 Regions Visited 3 Branch Regions 2 Pre-discovered Areas 1 | . . 1 . Known Exits Taken . | . . . . Unknown Exits Taken 3 | 1 1 1 . Scrap Searched 5 | . . . 5 Spaces Dug . | . . . . Terrain Destroyed . | . . . . Melee . | . . . . Projectile . | . . . . AOE . | . . . . Terrain Rammed . | . . . . Walls Destroyed . | . . . . Machines Disabled . | . . . . Actions | -11 -10 -10 -7 --------- Run | Yrd Mat Sub Scr Total 2309 | 201 254 230 1624 Wait 129 | 4 118 7 . Move 2072 | 156 112 216 1588 Hop . | . . . . Pick Up 24 | 11 1 3 9 Fast Attach 8 | 3 1 . 4 Attach 6 | 3 . 1 2 Detach . | . . . . Swap 8 | 2 2 1 3 Drop 19 | . 1 2 16 Fire 43 | 22 19 . 2 Melee . | . . . . Ram . | . . . . Kick . | . . . . Crush . | . . . . Escape Stasis . | . . . . Rewire . | . . . . Trap . | . . . . Miscellaneous . | . . . . Route ------- -11/Scrapyard -10/Materials -10/Subcaves -7/Scraptown (discovered 2 exits: [*Fac x2]) History --------- Turn | Location | Event 8 | -11/Scrapyard | Discovered new exit (range 15) 213 | -11/Scrapyard | Entered Materials 309 | -10/Materials | Build established: Mutant 323 | -10/Materials | Discovered new exit (range 8) 479 | -10/Materials | Entered Subcaves 480 | -10/Subcaves | Approached by a straggling Scientist 485 | -10/Subcaves | Learned location of Mines (-9) 574 | -10/Subcaves | Shifting Twisted Machinery released Enh. Flamer 576 | -10/Subcaves | Shifting Twisted Machinery released Shrapnel Trap 580 | -10/Subcaves | Scientist uncovered a shortcut to Scraptown 665 | -10/Subcaves | Entered Scraptown 827 | -7/Scraptown | Discovered new exit (range 13) 830 | -7/Scraptown | Heard Great Nut preacher, LISTEN AND RECITE! 867 | -7/Scraptown | Visited Cyclists 891 | -7/Scraptown | Visited Cave Peace 905 | -7/Scraptown | Visited Fellowship of the Rings 923 | -7/Scraptown | Visited UFD Registry 923 | -7/Scraptown | Registered with UFD as "Metalmaster" 952 | -7/Scraptown | Entered Cyclist Reading Room 980 | -7/Scraptown | Visited Red Mages 1009 | -7/Scraptown | Visited Awakened 1198 | -7/Scraptown | Visited Symbiants 1205 | -7/Scraptown | Visited IN-MT5's Study 1232 | -7/Scraptown | Visited Research Penetration Think Tank 1412 | -7/Scraptown | Discovered new exit (range 5) 1437 | -7/Scraptown | Visited Science Guys 1459 | -7/Scraptown | Visited Observation Area 1489 | -7/Scraptown | Visited Supply Room 1500 | -7/Scraptown | Visited Curators Association 1522 | -7/Scraptown | Visited Junk Repository 1903 | -7/Scraptown | Met Optimus 1903 | -7/Scraptown | Accepted into 0bPrime 1943 | -7/Scraptown | Visited Derelict Rescue Squad 1960 | -7/Scraptown | Visited Junk Cannon Lab 1969 | -7/Scraptown | Found Prototype Special Weapon 1969 | -7/Scraptown | Identified Junk Cannon 1992 | -7/Scraptown | Visited Cartography Club 1998 | -7/Scraptown | Civil war broke out across Scraptown 2023 | -7/Scraptown | Core integrity fell below 50% 2031 | -7/Scraptown | Core integrity fell below 20% 2037 | -7/Scraptown | Destroyed by GF-PSV(h) with Bolt Gun Last Messages --------------- 02023_ Angular Momentum Engine destroyed. 02023_ Penetrated by Slug. 02025_ F8-9S5(j) heat damages Scrap Suit. 02026_ Penetrated by Bolt. 02027_ Penetrated by Slug. 02027_ Com. Wheel destroyed. 02027_ Critical hit (Burn: +50). 02028_ Penetrated by Bolt. 02028_ Wheel destroyed. 02028_ Penetrated by Bolt. 02028_ Dropped Med. Storage Unit. 02029_ I9-UIL(E): "To all who oppose us, at least your donations are appreciated." 02029_ Targeting Computer destroyed. 02030_ Penetrated by Slug. 02032_ F8-9S5(j) heat short circuits Mak. Salvage Targeting Computer. 02035_ Slug penetrates I9-UIL(E). 02035_ I9-UIL(E) destroyed. 02037_ Bolt penetrates Wall. Map ----- +----------------------------------------------------+ | | | | | | | ?????????????????????????????????????????????????? | | ?????????????????????????????????????????????????? | | ?????????????????????????????????????????????????? | | ?????????????????????????????????????????????????? | | ?????????????????????????????????????????????????? | | ?????????????????????????????????????????????????? | | ?????????????????????????????????????????????????? | | ?????????????????????????????????????????????????? | | ?????????????????????????????????????????????????? | | ?????????????????????????????????????????????????? | | ?????????????????????????????????????????????????? | | ????????????????????????????????#####????????????? | | ????????????????????????????????#"""#????????????? | | ?????###############???####?????#" "#????????????? | | ?????#"""##""|##"""#??## ##????# < #????????????? | | ?"" ##"" ##"" ##!!"#### ###### ##???????????? | | ?"" #???????????? | | # #???????????? | | ####################### ###########???????????? | | ??????????????????????##!!##?????????????????????? | | ?????###############???#!%#############??????????? | | ?????#""""""#"""""""???# =#"""""""""""#??????????? | | ?????#""""""#" &&" ???# @#""" X """""#??????????? | | ?????#" ""#" "??# #"""" """#??????????? | | ?????#" ""#"" ""??# #""!" "#??????????? | | ?????#" ""#" %/ "#?#!!#"""" """#??????????? | | ?????#" ""#"" ""#?#[%#"" """"#??????????? | | ?????#" "#" "#?#=!# ""#??????????? | | ##"###" """#"" ""#?# *# " "" ""#??????????? | | # # #?# #&" "" ""#??????????? | | # #? #?# #" #??????????? | | # #??? ??# # "#??????????? | | ###### ######????# #???# ## ##########??????????? | | ###### ########### ##### ## ###############?????? | | " """" """"""" "" """""h "" "## """""""""#?????? | | [% % * %[=% ## "#?????? | | = !!! != "## """""" "#?????? | | =%! ! ## "????" "#?????? | | * "## "????" "#?????? | | "????" "#?????? | | """" """"""" """ " " "## """""" "#?????? | | """""""""""""""""""""""" "## " "#?????? | | #### ################"" "## """"""""""#?????? | | ##????????#"" "##############?????? | | X"#????????#"" "#?? "" #??????????? | | "" "" ##????????#"" #?? "" #??????????? | | "" "" X"#??????###"" "#? =="#??????????? | +----------------------------------------------------+ Best States ------------- Heat Dissipation 25 Energy Generation 18 Energy Capacity 300 Matter Stores 300 Matter Capacity 300 Sight Range 16 Terrain Scan Density 10 Evasion (%) 50 Targeting Accuracy 5 Item Schematics ----------------- None Robot Schematics ------------------ None Fabricated ------------ Nothing Repaired ---------- Nothing Alien Tech Used ----------------- None Achievements -------------- None Challenges ------------ None Game ------ Seed LightpackThiefCloak Manual? 0 Play Time 00:24:13 Cumulative 68.3 hours Start 2025.05.23 @ 21:51:15 End 2025.05.24 @ 11:50:55 Sessions 2 Manual Loads 0 Difficulty Rogue Special Mode None Game No. 45 Rogue 45 Adventurer 0 Explorer 0 Win Type - Total 0 Types 0/0/0/0/0/0/0/0/0/0 Lore% 48 Gallery% 41 Achievement% 37 Wizard Run 0 Options --------- Layout 1 ASCII 0 Keyboard 0 Movement Mouse Keybinds 0 Fullscreen 1 Font 24/Smallcaps Map View 50x35 Zoom Use 0% Tactical HUD 1 Map Filters NONE Filters NONE Steam 1 RUN: 9858a19d-a292-4393-905f-695741a3d03c